bitfinex/quotes_BTCUSD_20250412
["timestamp","ask_amount","ask_price","bid_price","bid_amount"]
[1744447985610,0.000844,83540.0,83539.0,0.60603054]
[1744447986626,0.00130879,83540.0,83539.0,0.60603054]
[1744447988105,0.00130879,83540.0,83539.0,1.04603054]
[1744447991405,0.00130879,83540.0,83539.0,1.04599054]
[1744447997827,0.00130879,83540.0,83539.0,0.79915054]
[1744447998080,0.00130879,83540.0,83539.0,1.04599054]
[1744448000722,0.00130879,83540.0,83539.0,0.94599054]
[1744448001148,0.00130879,83540.0,83539.0,1.04599054]
[1744448001797,0.00130879,83540.0,83539.0,0.94599054]
[1744448002018,0.00130879,83540.0,83539.0,0.94595054]
[1744448004042,0.00130879,83540.0,83539.0,0.239409]
[1744448009300,0.239414,83538.0,83536.0,0.1468]
[1744448009512,0.01,83538.0,83536.0,0.1468]
[1744448009708,0.01382956,83537.0,83536.0,0.1468]
[1744448009911,0.02382956,83537.0,83536.0,0.1468]
[1744448010316,0.02382956,83537.0,83526.0,0.011972]
[1744448010317,0.011971,83532.0,83526.0,0.011972]
[1744448010641,0.03,83532.0,83526.0,0.011972]
[1744448011067,0.03,83532.0,83527.0,0.239443]
[1744448011281,0.03,83532.0,83529.0,0.011971]
[1744448011468,0.01378415,83531.0,83529.0,0.011971]
[1744448011869,0.011971,83533.0,83529.0,0.011971]
[1744448012098,0.01378415,83530.0,83529.0,0.011971]
[1744448012552,0.011971,83532.0,83529.0,0.011971]
[1744448012780,0.01378415,83530.0,83529.0,0.011971]
[1744448013019,0.011971,83532.0,83529.0,0.011971]
[1744448013260,0.01378415,83530.0,83529.0,0.011971]
[1744448013464,0.239445,83527.0,83525.0,1.2322]
[1744448013657,0.239445,83527.0,83521.0,0.251431]
[1744448013658,0.011972,83526.0,83521.0,0.251431]
[1744448013922,0.239445,83527.0,83524.0,0.011972]
[1744448013923,0.239443,83527.0,83524.0,0.011972]
[1744448014135,0.01378415,83525.0,83524.0,0.251423]
[1744448014335,0.011972,83527.0,83524.0,0.251423]
[1744448014660,0.01378415,83525.0,83524.0,0.251423]
[1744448014878,0.011972,83527.0,83524.0,0.251423]
[1744448015109,0.01378415,83525.0,83524.0,0.251423]
[1744448015536,0.011972,83528.0,83524.0,0.251423]
[1744448015738,0.01378415,83525.0,83524.0,0.251423]
[1744448015954,0.251412,83528.0,83525.0,0.011972]
[1744448016163,0.251405,83530.0,83525.0,0.251419]
[1744448016376,0.271405,83530.0,83525.0,0.251419]
[1744448024485,0.271405,83530.0,83526.0,0.251416]
[1744448025435,0.271405,83530.0,83528.0,0.23944]
[1744448025436,0.02,83530.0,83528.0,0.23944]
[1744448025657,0.01197,83539.0,83535.0,0.251389]
[1744448025916,0.01197,83538.0,83535.0,0.251389]
[1744448026125,0.01197,83537.0,83533.0,0.011971]
[1744448026329,0.05197,83537.0,83533.0,0.011971]
[1744448026547,0.01366917,83536.0,83533.0,0.011971]
[1744448026767,0.02366917,83536.0,83533.0,0.011971]
[1744448027398,0.251393,83535.0,83531.0,0.251401]
[1744448027611,0.261393,83535.0,83531.0,0.251401]
[1744448028033,0.01366917,83534.0,83531.0,0.251401]
[1744448028631,0.02564017,83534.0,83531.0,0.251401]
[1744448032614,0.03564017,83534.0,83531.0,0.251401]
[1744448033024,0.03564017,83534.0,83531.0,0.011971]
[1744448036339,0.251397,83533.0,83530.0,0.011971]
[1744448036551,0.01371275,83532.0,83530.0,0.011971]
[1744448040841,0.01371275,83532.0,83530.0,0.251404]
[1744448041098,0.01371275,83532.0,83531.0,0.00239411]
[1744448041318,0.01371275,83532.0,83531.0,0.0464]
[1744448041540,0.0128148,83542.0,83538.0,0.239412]
[1744448041790,0.01371275,83539.0,83538.0,0.239412]
[1744448041971,0.02371275,83539.0,83538.0,0.239412]
[1744448043108,0.01,83539.0,83538.0,0.239412]
[1744448043703,0.02373924,83539.0,83538.0,0.239412]
[1744448043920,0.02373924,83539.0,83538.0,0.24180583]
[1744448044044,0.00130879,83540.0,83538.0,0.24180583]
[1744448047471,0.00130879,83540.0,83538.0,0.239412]
[1744448053693,0.00130879,83540.0,83539.0,0.00239375]
[1744448055096,0.00130879,83540.0,83539.0,0.00239369]
[1744448055516,0.00130879,83540.0,83538.0,0.239412]
[1744448056133,0.00130879,83540.0,83539.0,0.00239372]
[1744448056941,0.00130879,83540.0,83538.0,0.239412]
[1744448058045,0.00130879,83540.0,83539.0,0.00239372]
[1744448075226,0.00130879,83540.0,83539.0,0.22003525]
[1744448078336,0.00130879,83540.0,83539.0,0.23210114]
[1744448088051,0.00130879,83540.0,83539.0,0.57210114]
[1744448088275,0.00130879,83540.0,83539.0,0.56970743]
[1744448089125,5.9e-07,83542.0,83540.0,0.628306]
[1744448089343,0.0008442,83559.0,83553.0,0.011968]
[1744448089344,3.9e-07,83556.0,83553.0,0.011968]
[1744448089557,3.9e-07,83556.0,83555.0,0.239363]
[1744448089797,3.9e-07,83556.0,83555.0,0.40550454]
[1744448090254,0.0008442,83559.0,83558.0,0.239354]
[1744448090255,5.9e-07,83559.0,83558.0,0.239354]
[1744448090490,5.9e-07,83559.0,83558.0,1.15968762]
[1744448090693,5.9e-07,83559.0,83558.0,1.15729501]
[1744448091368,5.9e-07,83559.0,83558.0,1.20259501]
[1744448092544,7.9e-07,83565.0,83564.0,0.288237]
[1744448093003,7.9e-07,83565.0,83564.0,0.40907854]
[1744448094805,7.9e-07,83565.0,83564.0,0.81727801]
[1744448095295,9.9e-07,83566.0,83565.0,0.34]
[1744448095503,9.9e-07,83566.0,83565.0,0.50604154]
[1744448096653,9.9e-07,83566.0,83565.0,0.50616942]
[1744448100565,9.9e-07,83566.0,83565.0,0.91436889]
[1744448102745,9.9e-07,83566.0,83565.0,1.06056889]
[1744448103005,9.9e-07,83566.0,83565.0,0.91436889]
[1744448103213,9.9e-07,83566.0,83565.0,1.06056889]
[1744448106869,9.9e-07,83566.0,83565.0,1.07610974]
[1744448111873,9.9e-07,83566.0,83565.0,0.92990974]
[1744448112087,9.9e-07,83566.0,83565.0,1.07590974]
[1744448118523,9.9e-07,83566.0,83565.0,1.06036889]
[1744448121962,9.9e-07,83566.0,83565.0,0.91436889]
[1744448122167,9.9e-07,83566.0,83565.0,1.06036889]
[1744448128043,9.9e-07,83566.0,83565.0,1.01516889]
[1744448141134,9.9e-07,83566.0,83565.0,1.10936889]
[1744448141337,9.9e-07,83566.0,83565.0,1.14094572]
[1744448145298,9.9e-07,83566.0,83565.0,1.23129935]
[1744448148004,9.9e-07,83566.0,83565.0,1.14094572]
[1744448148414,1.9e-07,83573.0,83572.0,0.239314]
[1744448148620,1.9e-07,83573.0,83572.0,0.36015554]
[1744448149627,1.9e-07,83573.0,83572.0,0.37219099]
[1744448149853,3.9e-07,83574.0,83572.0,0.37219099]
[1744448150054,3.9e-07,83574.0,83573.0,0.16694154]
[1744448150262,3.9e-07,83574.0,83573.0,0.50694154]
[1744448150466,0.0478442,83593.0,83573.0,0.50694154]
[1744448150467,9.9e-07,83575.0,83574.0,0.64294885]
[1744448150638,9.9e-07,83575.0,83574.0,0.79536201]
[1744448154232,9.9e-07,83575.0,83574.0,0.77982116]
[1744448154439,9.9e-07,83575.0,83574.0,0.74824954]
[1744448154615,9.9e-07,83575.0,83574.0,0.89404954]
[1744448154984,9.9e-07,83575.0,83574.0,0.74824954]
[1744448155191,9.9e-07,83575.0,83574.0,0.89404954]
[1744448156279,9.9e-07,83575.0,83574.0,1.30224901]
[1744448156454,9.9e-07,83575.0,83574.0,1.25414901]
[1744448161532,0.04870099,83575.0,83574.0,0.239308]
[1744448163382,0.04870099,83575.0,83574.0,0.385108]
[1744448170629,9.9e-07,83575.0,83574.0,0.385108]
[1744448171378,9.9e-07,83575.0,83574.0,0.50594954]
[1744448173849,9.9e-07,83575.0,83574.0,0.91414901]
[1744448176127,0.04610099,83575.0,83574.0,0.64750747]
[1744448176597,0.04610099,83575.0,83574.0,0.79310747]
[1744448177258,0.04610099,83575.0,83574.0,0.64750747]
[1744448177482,0.04610099,83575.0,83574.0,0.79310747]
[1744448178162,0.04610099,83575.0,83574.0,0.55379947]
[1744448178865,0.05140232,83575.0,83574.0,0.55379947]
[1744448179792,0.05140232,83575.0,83574.0,0.1456]
[1744448181600,0.05140232,83575.0,83574.0,0.384908]
[1744448182633,0.05140232,83575.0,83574.0,0.239308]
[1744448184933,0.05140232,83575.0,83572.0,0.251279]
[1744448185536,0.05379354,83575.0,83572.0,0.251279]
[1744448186579,0.05140232,83575.0,83572.0,0.251279]
[1744448187419,0.00239122,83574.0,83573.0,0.239309]
[1744448187556,0.05140232,83575.0,83573.0,0.239309]
[1744448187761,0.00525523,83574.0,83573.0,0.239309]
[1744448190452,0.00525523,83574.0,83572.0,0.011965]
[1744448190670,0.00525523,83574.0,83570.0,0.251284]
[1744448190671,0.00764645,83574.0,83571.0,0.25128]
[1744448190909,0.239331,83566.0,83555.0,0.011968]
[1744448191140,0.22617302,83566.0,83561.0,0.011967]
[1744448191580,0.22617302,83566.0,83560.0,0.011967]
[1744448191787,0.22617302,83566.0,83561.0,0.011967]
[1744448192007,0.22617302,83566.0,83560.0,0.011967]
[1744448192670,0.46550402,83566.0,83560.0,0.011967]
[1744448192896,0.4631128,83566.0,83560.0,0.011967]
[1744448193112,0.4631128,83566.0,83550.0,0.011968]
[1744448193113,0.62895434,83566.0,83550.0,0.011968]
[1744448193344,0.62895434,83566.0,83551.0,0.011968]
[1744448195807,0.62895434,83566.0,83548.0,0.239382]
[1744448196024,0.62895434,83566.0,83549.0,0.011969]
[1744448196668,0.63519146,83566.0,83549.0,0.011969]
[1744448197825,0.63519146,83566.0,83550.0,0.011968]
[1744448199360,0.63519146,83566.0,83549.0,0.011969]
[1744448199805,0.63519146,83566.0,83550.0,0.011968]
[1744448200024,0.63519146,83566.0,83549.0,0.011969]
[1744448203896,0.63519146,83566.0,83547.0,0.396994]
[1744448204094,0.63519146,83566.0,83548.0,0.011969]
[1744448205147,0.64973231,83566.0,83547.0,0.14564]
[1744448206608,0.64973231,83566.0,83565.0,0.00012788]
[1744448209077,1.06852893,83566.0,83565.0,0.00012788]
[1744448212799,1.06689993,83566.0,83565.0,0.00012788]
[1744448222077,0.96038808,83566.0,83565.0,0.00012788]
[1744448235372,0.95520628,83566.0,83565.0,0.00012788]
[1744448251212,0.251339,83553.0,83550.0,0.04942339]
[1744448251399,0.00239122,83552.0,83550.0,0.04956328]
[1744448251936,0.01,83552.0,83550.0,0.04956328]
[1744448253168,0.249373,83552.0,83550.0,0.04956328]
[1744448262872,0.01,83552.0,83550.0,0.04956328]
[1744448276573,0.01,83552.0,83551.0,0.239374]
[1744448277272,0.01,83552.0,83550.0,0.04956328]
[1744448277497,0.01,83552.0,83550.0,0.28893828]
[1744448279585,0.01,83552.0,83550.0,0.04956328]
[1744448279803,0.01,83552.0,83550.0,0.00013989]
[1744448281807,0.01,83552.0,83550.0,0.23951489]
[1744448282039,0.01,83552.0,83550.0,0.00013989]
[1744448282427,0.01,83552.0,83550.0,0.23951489]
[1744448284095,0.01,83552.0,83550.0,0.00013989]
[1744448285768,0.01,83552.0,83551.0,0.239374]
[1744448285991,0.01,83552.0,83550.0,0.00013989]
[1744448289518,0.01,83552.0,83550.0,0.23951489]
[1744448304511,0.01,83552.0,83550.0,0.00013989]
[1744448304920,0.01,83552.0,83550.0,0.23951689]
[1744448305533,0.02225816,83551.0,83550.0,0.23951689]
[1744448305769,0.03225816,83551.0,83550.0,0.23951689]
[1744448307760,0.01,83551.0,83550.0,0.23951689]
[1744448314607,0.01061,83551.0,83550.0,0.23951689]
[1744448326058,0.00061,83551.0,83550.0,0.00013989]
[1744448401726,0.00061,83551.0,83550.0,0.16968143]
[1744448401939,0.00061,83551.0,83550.0,0.5578751]
[1744448402136,9.9e-07,83575.0,83574.0,0.239308]
[1744448402576,0.00833089,83575.0,83574.0,0.239308]
[1744448402994,0.00833089,83575.0,83574.0,0.36254256]
[1744448403159,0.00833089,83575.0,83574.0,0.36014954]
[1744448403442,9.9e-07,83575.0,83574.0,0.36014954]
[1744448405273,9.9e-07,83575.0,83574.0,0.50450954]
[1744448405592,9.9e-07,83575.0,83574.0,0.51330264]
[1744448406860,9.9e-07,83575.0,83574.0,0.52539959]
[1744448422555,9.9e-07,83575.0,83574.0,0.38103959]
[1744448422798,9.9e-07,83575.0,83574.0,0.239308]
[1744448443290,0.00066551,83585.0,83582.0,0.011964]
[1744448443504,0.00066551,83585.0,83584.0,0.23928]
[1744448444438,0.00066551,83585.0,83584.0,0.23941989]
[1744448449098,0.00532776,83585.0,83584.0,0.23941989]
[1744448451010,0.00066551,83585.0,83584.0,0.23941989]
[1744448456073,0.00533444,83585.0,83584.0,0.23941989]
[1744448459586,0.0136831,83585.0,83584.0,0.23941989]
[1744448462800,0.00901417,83585.0,83584.0,0.23941989]
[1744448463537,0.01901417,83585.0,83584.0,0.23941989]
[1744448463743,0.00901417,83585.0,83584.0,0.23941989]
[1744448466096,0.00066551,83585.0,83584.0,0.23941989]
[1744448469990,0.00066551,83585.0,83584.0,0.45685404]
[1744448470237,0.00066551,83585.0,83584.0,0.45446143]
[1744448475546,7.1e-07,83586.0,83585.0,0.0942]
[1744448475790,7.1e-07,83586.0,83585.0,0.21743363]
[1744448476713,7.1e-07,83586.0,83585.0,0.9656331]
[1744448476944,9.1e-07,83593.0,83590.0,0.011963]
[1744448477163,9.1e-07,83593.0,83591.0,0.36127349]
[1744448477381,9.1e-07,83593.0,83592.0,0.04959195]
[1744448477589,9.1e-07,83593.0,83592.0,0.17043349]
[1744448477800,9.1e-07,83593.0,83592.0,0.17790601]
[1744448478690,9.1e-07,83593.0,83592.0,0.97310548]
[1744448478918,1.1e-07,83600.0,83599.0,0.4342]
[1744448479134,1.1e-07,83600.0,83599.0,0.96324101]
[1744448479405,1.1e-07,83600.0,83599.0,0.97071353]
[1744448480229,0.002,83629.0,83599.0,0.97071353]
[1744448480230,0.00049791,83619.0,83618.0,0.239182]
[1744448481467,0.00049791,83619.0,83618.0,0.23932189]
[1744448500616,0.00049791,83619.0,83618.0,0.40956343]
[1744448500866,0.00049791,83619.0,83618.0,0.75703525]
[1744448501077,0.00049791,83619.0,83618.0,0.80343525]
[1744448501727,0.00049791,83619.0,83618.0,0.81231559]
[1744448505619,0.00049791,83619.0,83618.0,0.24679371]
[1744448505855,0.20769791,83619.0,83618.0,0.00761171]
[1744448506117,0.25269791,83619.0,83618.0,0.00761171]
[1744448507930,0.25269791,83619.0,83618.0,0.00013989]
[1744448508550,0.26467272,83619.0,83618.0,0.00013989]
[1744448508968,0.16049791,83619.0,83618.0,0.23932189]
[1744448510011,0.00049791,83619.0,83618.0,0.23932189]
[1744448510222,0.00049791,83619.0,83618.0,0.25393643]
[1744448510412,0.00049791,83619.0,83618.0,0.2590167]
[1744448511558,0.00049791,83619.0,83618.0,0.37985824]
[1744448515633,0.00049791,83619.0,83618.0,0.42925824]
[1744448515847,0.00049791,83619.0,83618.0,0.47565824]
[1744448517114,0.00049791,83619.0,83618.0,0.81565824]
[1744448517541,9.1e-07,83629.0,83628.0,0.628554]
[1744448517739,9.1e-07,83629.0,83628.0,0.79579554]
[1744448517951,9.1e-07,83629.0,83628.0,2.44925586]
[1744448518167,9.1e-07,83629.0,83628.0,2.45672768]
[1744448518326,9.1e-07,83629.0,83628.0,2.55672768]
[1744448522754,9.1e-07,83629.0,83628.0,2.70036768]
[1744448524532,9.1e-07,83629.0,83628.0,2.58582683]
[1744448526759,9.1e-07,83629.0,83628.0,2.60136768]
[1744448526980,0.0004218,83653.0,83652.0,0.284585]
[1744448527151,0.0004218,83653.0,83652.0,0.54906654]
[1744448527614,0.0004218,83653.0,83652.0,0.55653836]
[1744448528013,0.0004218,83653.0,83652.0,0.89653836]
[1744448528014,8e-07,83653.0,83652.0,0.89653836]
[1744448528211,8e-07,83653.0,83652.0,0.90559183]
[1744448528460,4e-08,83659.0,83658.0,0.34]
[1744448528672,4e-08,83659.0,83658.0,0.46098143]
[1744448528894,4e-08,83663.0,83662.0,0.679057]
[1744448529075,4e-08,83663.0,83662.0,0.80737036]
[1744448530268,4e-08,83663.0,83662.0,1.24543239]
[1744448530456,4e-08,83663.0,83662.0,1.26097324]
[1744448530779,4e-08,83663.0,83662.0,1.30776694]
[1744448530981,8.4e-07,83669.0,83668.0,0.23904]
[1744448531183,8.4e-07,83669.0,83668.0,0.92725596]
[1744448531437,8.4e-07,83669.0,83668.0,0.89684706]
[1744448531825,8.4e-07,83669.0,83668.0,1.32058738]
[1744448532032,4.4e-07,83677.0,83676.0,0.579017]
[1744448532290,4.4e-07,83677.0,83676.0,1.15485801]
[1744448532402,4.4e-07,83677.0,83676.0,1.16679941]
[1744448532607,4.4e-07,83677.0,83676.0,1.17426493]
[1744448533444,4.4e-07,83677.0,83676.0,1.18317173]
[1744448533843,4.4e-07,83677.0,83676.0,1.13637173]
[1744448534272,4.4e-07,83677.0,83676.0,1.27997173]
[1744448537496,4.4e-07,83677.0,83676.0,1.27106493]
[1744448538544,4.4e-07,83677.0,83676.0,0.73008252]
[1744448538990,4.4e-07,83677.0,83676.0,0.382617]
[1744448539424,4.4e-07,83677.0,83676.0,0.239017]
[1744448542116,4.4e-07,83677.0,83676.0,0.58140704]
[1744448542320,4.4e-07,83677.0,83676.0,0.69985854]
[1744448542523,4.4e-07,83677.0,83676.0,0.7073241]
[1744448543291,4.4e-07,83677.0,83676.0,0.8507641]
[1744448553984,4.4e-07,83677.0,83676.0,0.5107641]
[1744448559255,4.4e-07,83677.0,83676.0,0.91896357]
[1744448559491,4.4e-07,83677.0,83676.0,0.96756357]
[1744448559686,4.4e-07,83677.0,83676.0,0.98210442]
[1744448560163,4.4e-07,83677.0,83676.0,1.01370637]
[1744448560507,0.002,83689.0,83676.0,1.01370637]
[1744448560508,4.4e-07,83689.0,83688.0,0.238982]
[1744448560717,4.4e-07,83689.0,83688.0,0.41101264]
[1744448560920,4.4e-07,83689.0,83688.0,0.4160891]
[1744448561142,4.4e-07,83698.0,83697.0,0.238957]
[1744448561382,4.4e-07,83698.0,83697.0,0.91143801]
[1744448561671,4.4e-07,83698.0,83697.0,0.92728432]
[1744448561894,4.4e-07,83698.0,83697.0,0.80658267]
[1744448562141,4.4e-07,83698.0,83697.0,0.66314267]
[1744448562358,4.4e-07,83698.0,83697.0,0.80658267]
[1744448562575,4.4e-07,83698.0,83697.0,0.79820192]
[1744448566304,4.4e-07,83698.0,83697.0,0.55924492]
[1744448566532,4.4e-07,83698.0,83697.0,0.56761903]
[1744448566755,0.23895444,83698.0,83697.0,0.01597956]
[1744448566993,0.25361932,83698.0,83697.0,0.01597956]
[1744448567476,0.25361932,83698.0,83697.0,0.00013989]
[1744448568184,0.25361932,83698.0,83697.0,0.00760533]
[1744448569229,0.30341932,83698.0,83697.0,0.00760533]
[1744448569402,0.30341932,83698.0,83697.0,0.00013989]
[1744448580767,0.42426086,83698.0,83697.0,0.00013989]
[1744448581833,1.2495257,83698.0,83697.0,0.00013989]
[1744448582866,1.25842617,83698.0,83697.0,0.00013989]
[1744448583243,1.25376129,83698.0,83697.0,0.00013989]
[1744448584452,1.26555478,83698.0,83697.0,0.00013989]
[1744448586360,0.239051,83664.0,83663.0,0.0008434]
[1744448586563,0.249051,83664.0,83663.0,0.00098344]
[1744448586984,0.36989254,83664.0,83663.0,0.00098344]
[1744448589988,0.84823001,83664.0,83663.0,0.00098344]
[1744448590341,0.8603241,83664.0,83663.0,0.00098344]
[1744448592479,0.84578325,83664.0,83663.0,0.00098344]
[1744448592683,0.80078325,83664.0,83663.0,0.00098344]
[1744448599783,0.78868916,83664.0,83663.0,0.00098344]
[1744448600022,0.42879662,83664.0,83663.0,0.00098344]
[1744448600240,0.42879662,83664.0,83663.0,0.04868344]
[1744448605289,0.01,83664.0,83663.0,0.04868344]
[1744448609645,0.011952,83666.0,83663.0,0.04868344]
[1744448610693,0.011952,83666.0,83663.0,0.00098344]
[1744448610978,0.191952,83666.0,83663.0,0.00098344]
[1744448611834,0.239051,83665.0,83663.0,0.00098344]
[1744448612055,0.011952,83666.0,83663.0,0.00098344]
[1744448612301,0.171952,83666.0,83663.0,0.00098344]
[1744448613743,0.411,83666.0,83663.0,0.00098344]
[1744448614880,0.239051,83664.0,83663.0,0.00098344]
[1744448615136,0.389051,83664.0,83663.0,0.00098344]
[1744448615784,0.50989254,83664.0,83663.0,0.00098344]
[1744448633635,0.389051,83664.0,83663.0,0.00098344]
[1744448649572,0.15,83664.0,83663.0,0.00098344]
[1744448652022,0.15,83664.0,83663.0,0.00845224]
[1744448652595,0.15,83664.0,83663.0,0.00098344]
[1744448653815,0.15,83664.0,83663.0,0.0084522]
[1744448668084,0.15,83664.0,83663.0,0.0557522]
[1744448668313,0.011949,83689.0,83685.0,0.238989]
[1744448668541,0.410931,83689.0,83685.0,0.011949]
[1744448668789,0.16,83689.0,83688.0,0.238982]
[1744448669190,0.16,83689.0,83688.0,0.287782]
[1744448669651,0.16,83689.0,83688.0,0.2952478]
[1744448671035,0.16,83689.0,83688.0,0.287782]
[1744448674593,0.16,83689.0,83686.0,0.250937]
[1744448675193,0.16,83689.0,83687.0,0.238983]
[1744448677674,0.011948,83694.0,83691.0,0.011948]
[1744448677874,0.071948,83694.0,83691.0,0.011948]
[1744448678933,0.071948,83694.0,83691.0,0.01208804]
[1744448679540,0.06,83694.0,83692.0,0.238971]
[1744448680830,0.06,83694.0,83691.0,0.01208804]
[1744448682001,0.06,83694.0,83691.0,0.25106004]
[1744448687970,0.06,83694.0,83691.0,0.25105904]
[1744448688414,0.06,83694.0,83693.0,0.238968]
[1744448688835,0.06,83694.0,83692.0,0.238969]
[1744448690247,0.06,83694.0,83691.0,0.25105904]
[1744448690876,0.071948,83694.0,83691.0,0.00014004]
[1744448691334,0.071948,83694.0,83691.0,0.01208804]
[1744448696967,0.310916,83694.0,83691.0,0.00014004]
[1744448697378,0.071948,83694.0,83691.0,0.23911204]
[1744448697591,0.06,83694.0,83692.0,0.00746619]
[1744448697815,0.238968,83693.0,83692.0,0.00746619]
[1744448698042,0.278968,83693.0,83692.0,0.00746619]
[1744448698234,0.04,83693.0,83692.0,0.00746619]
[1744448699248,0.04,83693.0,83692.0,0.01119929]
[1744448708302,0.04,83693.0,83692.0,0.00746619]
[1744448710737,0.04,83693.0,83692.0,0.01119925]
[1744448722065,4.4e-07,83698.0,83695.0,0.011948]
[1744448722272,0.01000044,83698.0,83696.0,0.23896]
[1744448722809,0.01000044,83698.0,83697.0,0.00746619]
[1744448723135,0.01000044,83698.0,83697.0,0.01119925]
[1744448731418,0.02824269,83698.0,83697.0,0.01119925]
[1744448732673,0.14908423,83698.0,83697.0,0.01119925]
[1744448732899,0.50362508,83698.0,83697.0,0.00746619]
[1744448733299,0.011948,83694.0,83691.0,0.00014004]
[1744448733518,0.35980954,83693.0,83691.0,0.00014004]
[1744448733713,0.52806736,83693.0,83691.0,0.00014004]
[1744448735964,0.0932,83692.0,83691.0,0.00014004]
[1744448736172,0.37858239,83692.0,83691.0,0.00014004]
[1744448736377,0.39678535,83692.0,83691.0,0.00014004]
[1744448737315,0.81558197,83692.0,83691.0,0.00014004]
[1744448739199,1.15558197,83692.0,83691.0,0.00014004]
[1744448739403,1.28253848,83692.0,83691.0,0.00014004]
[1744448740428,1.16181,83692.0,83691.0,0.00014004]
[1744448754450,1.30449,83692.0,83691.0,0.00014004]
[1744448755693,1.19674915,83692.0,83691.0,0.00014004]
[1744448756132,1.21129,83692.0,83691.0,0.00014004]
[1744448756377,1.05406915,83692.0,83691.0,0.00014004]
[1744448763304,1.05406915,83692.0,83691.0,0.00514004]
[1744448764699,0.71406915,83692.0,83691.0,0.00514004]
[1744448764931,1.05406915,83692.0,83691.0,0.00514004]
[1744448768662,1.06861,83692.0,83691.0,0.00514004]
[1744448774882,1.05406915,83692.0,83691.0,0.00514004]
[1744448782583,0.59322761,83692.0,83691.0,0.05154004]
[1744448782835,0.58699958,83692.0,83691.0,0.05154004]
[1744448783334,0.58699958,83692.0,83691.0,0.05527324]
[1744448784206,0.58699958,83692.0,83691.0,0.06273973]
[1744448786150,0.16820296,83692.0,83691.0,0.06273973]
[1744448802826,0.2890445,83692.0,83691.0,0.01633973]
[1744448803035,0.2890445,83692.0,83691.0,0.01260653]
[1744448803250,0.2890445,83692.0,83691.0,0.00514004]
[1744448806629,0.64358535,83692.0,83691.0,0.00514004]
[1744448806843,0.73968535,83692.0,83691.0,0.00514004]
[1744448807051,0.74591202,83692.0,83691.0,0.00514004]
[1744448807452,1.16470864,83692.0,83691.0,0.00514004]
[1744448816595,1.11720864,83692.0,83691.0,0.00514004]
[1744448821701,1.23105949,83692.0,83691.0,0.00514004]
[1744448822129,1.11720864,83692.0,83691.0,0.00514004]
[1744448822351,1.11720864,83692.0,83691.0,0.00814004]
[1744448831712,1.06860864,83692.0,83691.0,0.00814004]
[1744448841143,1.06970854,83692.0,83691.0,0.00814004]
[1744448851942,1.10330823,83692.0,83691.0,0.00814004]
[1744448852342,1.06970854,83692.0,83691.0,0.00814004]
[1744448853247,1.10330666,83692.0,83691.0,0.00814004]
[1744448854990,1.14940666,83692.0,83691.0,0.00814004]
[1744448855202,1.27013514,83692.0,83691.0,0.00814004]
[1744448855430,0.34,83665.0,83664.0,0.00746836]
[1744448855702,1.07417901,83665.0,83664.0,3.6e-07]
[1744448855908,1.07417901,83665.0,83652.0,0.048]
[1744448855909,0.59361785,83655.0,83654.0,3e-07]
[1744448856166,0.59361785,83655.0,83623.0,0.011958]
[1744448856167,0.59361785,83655.0,83641.0,0.09006068]
[1744448856168,0.59365185,83643.0,83641.0,0.09006068]
[1744448856390,1.32042086,83643.0,83642.0,0.02130904]
[1744448857036,1.32925347,83643.0,83642.0,0.02130904]
[1744448857492,1.34140026,83643.0,83642.0,0.02130904]
[1744448859231,1.3907958,83643.0,83642.0,0.02130904]
[1744448860012,0.35454085,83642.0,83641.0,6.8e-07]
[1744448860236,0.35454085,83642.0,83613.0,0.0488434]
[1744448860237,0.579142,83632.0,83613.0,0.0488434]
[1744448860448,1.43126016,83632.0,83613.0,0.0488434]
[1744448860683,1.46235478,83632.0,83615.0,0.011959]
[1744448860956,1.46235478,83632.0,83631.0,0.05]
[1744448860957,0.72619193,83632.0,83631.0,0.05]
[1744448861179,0.60535039,83632.0,83631.0,0.0998]
[1744448866857,0.58879662,83632.0,83631.0,0.0998]
[1744448867061,0.60461087,83632.0,83631.0,0.0998]
[1744448867245,0.43461087,83632.0,83631.0,0.0998]
[1744448870265,0.44461087,83632.0,83631.0,0.0998]
[1744448871983,0.02581425,83632.0,83631.0,0.0998]
[1744448873322,0.14665579,83632.0,83631.0,0.002]
[1744448877881,0.56545241,83632.0,83631.0,0.002]
[1744448880365,0.44461087,83632.0,83631.0,0.002]
[1744448884623,0.56545241,83632.0,83631.0,0.002]
[1744448897467,0.56545241,83632.0,83631.0,0.0502]
[1744448902741,0.44461087,83632.0,83631.0,0.0502]
[1744448902991,0.68375287,83632.0,83631.0,0.0502]
[1744448903206,0.68375287,83632.0,83631.0,0.05767173]
[1744448903617,0.68375287,83632.0,83631.0,0.06140759]
[1744448907689,0.44461087,83632.0,83631.0,0.06140759]
[1744448908777,0.02581425,83632.0,83631.0,0.06140759]
[1744448908992,0.0004657,83642.0,83638.0,0.011956]
[1744448909216,0.01317837,83641.0,83638.0,0.011956]
[1744448909470,0.18317837,83641.0,83638.0,0.011956]
[1744448909684,0.011956,83638.0,83634.0,0.239136]
[1744448909895,0.011956,83634.0,83631.0,0.0502]
[1744448910101,0.15,83634.0,83631.0,0.0502]
[1744448910304,0.01320777,83633.0,83632.0,0.01120689]
[1744448910520,0.17320777,83633.0,83632.0,0.01120689]
[1744448913287,0.16,83633.0,83632.0,0.01120689]
[1744448918861,0.17324628,83633.0,83632.0,0.01120689]
[1744448919711,0.17324628,83633.0,83632.0,0.00373563]
[1744448919888,0.239142,83632.0,83631.0,0.002]
[1744448920040,0.399142,83632.0,83631.0,0.002]
[1744448920255,0.41237294,83632.0,83631.0,0.002]
[1744448921590,0.41237294,83632.0,83631.0,0.00947126]
[1744448921981,0.41237294,83632.0,83631.0,0.01320689]
[1744448928559,0.41237294,83632.0,83631.0,0.00573563]
[1744448929326,0.41237294,83632.0,83631.0,0.002]
[1744448931408,0.53321448,83632.0,83631.0,0.002]
[1744448935081,0.53321448,83632.0,83631.0,0.00573596]
[1744448935385,0.53321448,83632.0,83631.0,0.01320789]
[1744448939130,0.53321448,83632.0,83631.0,0.00947193]
[1744448941195,0.53321448,83632.0,83631.0,0.01320789]
[1744448941391,0.17323094,83632.0,83631.0,0.01320789]
[1744448953717,0.08953042,83632.0,83631.0,0.01320789]
[1744448956504,0.08953042,83632.0,83631.0,0.05820789]
[1744448968443,0.08953042,83632.0,83631.0,0.01320789]
[1744449002690,0.21037196,83632.0,83631.0,0.01320789]
[1744449003739,0.21037196,83632.0,83631.0,0.00573596]
[1744449004166,0.26007196,83632.0,83631.0,0.00573596]
[1744449005188,0.26007196,83632.0,83631.0,0.002]
[1744449005385,0.76562411,83632.0,83631.0,0.002]
[1744449006847,1.18442073,83632.0,83631.0,0.002]
[1744449016671,1.18442073,83632.0,83617.0,0.00747246]
[1744449016672,0.23918,83619.0,83617.0,0.00531586]